[Event "Early-Titled-Tuesday-Blitz-April-02-2024"]
[Site "Chess.com"]
[Date "2024.04.02"]
[Round "2"]
[White "ninguno46"]
[Black "vovachesss"]
[Result "0-1"]
[WhiteElo "2577"]
[BlackElo "2811"]
[TimeControl "180+1"]
[EndTime "8:18:05 PDT"]
[Termination "vovachesss won by resignation"]

1. e4 {[%clk 0:02:55.5]} 1... c5 {[%clk 0:02:59.3]} 2. Nc3 {[%clk 0:02:54.7]}
2... e6 {[%clk 0:02:59.5]} 3. Nf3 {[%clk 0:02:52.7]} 3... a6 {[%clk 0:03:00.1]}
4. g3 {[%clk 0:02:51]} 4... b5 {[%clk 0:02:59.1]} 5. Bg2 {[%clk 0:02:50.2]} 5...
Bb7 {[%clk 0:02:59.3]} 6. d3 {[%clk 0:02:47.7]} 6... Nc6 {[%clk 0:02:57.4]} 7.
O-O {[%clk 0:02:47.4]} 7... d6 {[%clk 0:02:53]} 8. a3 {[%clk 0:02:44]} 8... Nf6
{[%clk 0:02:52.6]} 9. Bf4 {[%clk 0:02:40.5]} 9... Be7 {[%clk 0:02:47.2]} 10. e5
{[%clk 0:02:31.6]} 10... dxe5 {[%clk 0:02:21.2]} 11. Nxe5 {[%clk 0:02:29.9]}
11... Qc8 {[%clk 0:02:22.1]} 12. Nxc6 {[%clk 0:02:18.3]} 12... Bxc6 {[%clk
0:02:21.2]} 13. Bxc6+ {[%clk 0:02:18.7]} 13... Qxc6 {[%clk 0:02:22.1]} 14. Qe2
{[%clk 0:02:18.6]} 14... O-O {[%clk 0:02:19.1]} 15. Ne4 {[%clk 0:02:14]} 15...
c4 {[%clk 0:02:10.8]} 16. Rfd1 {[%clk 0:02:00.5]} 16... cxd3 {[%clk 0:01:39.4]}
17. cxd3 {[%clk 0:01:58.4]} 17... Nd5 {[%clk 0:01:39.5]} 18. Be5 {[%clk
0:01:45.4]} 18... Rac8 {[%clk 0:01:39.5]} 19. Nc3 {[%clk 0:01:40.7]} 19... f6
{[%clk 0:01:10]} 20. Nxd5 {[%clk 0:01:37.5]} 20... Qxd5 {[%clk 0:01:10.9]} 21.
Bc3 {[%clk 0:01:37.3]} 21... Rfd8 {[%clk 0:01:06.9]} 22. d4 {[%clk 0:01:31.4]}
22... Bf8 {[%clk 0:00:52.1]} 23. Re1 {[%clk 0:01:29]} 23... Rc6 {[%clk
0:00:50.2]} 24. Qe3 {[%clk 0:01:21.8]} 24... Rdc8 {[%clk 0:00:47.4]} 25. h4
{[%clk 0:01:17.7]} 25... h5 {[%clk 0:00:46.3]} 26. Re2 {[%clk 0:01:10.7]} 26...
Kf7 {[%clk 0:00:45.9]} 27. Qd3 {[%clk 0:01:09.4]} 27... Rd8 {[%clk 0:00:38.3]}
28. Qe3 {[%clk 0:01:04.5]} 28... Qf5 {[%clk 0:00:36.4]} 29. Rae1 {[%clk
0:01:01.1]} 29... Rd5 {[%clk 0:00:36.5]} 30. Rd2 {[%clk 0:00:37.6]} 30... Bd6
{[%clk 0:00:35.8]} 31. Rde2 {[%clk 0:00:34.6]} 31... Bc7 {[%clk 0:00:34.9]} 32.
Qd2 {[%clk 0:00:29.2]} 32... Bb6 {[%clk 0:00:32.6]} 33. Re4 {[%clk 0:00:28.7]}
33... Rcd6 {[%clk 0:00:30.1]} 34. Qe2 {[%clk 0:00:27.2]} 34... Bxd4 {[%clk
0:00:26.3]} 35. Rf4 {[%clk 0:00:21.4]} 35... Re5 {[%clk 0:00:11.2]} 36. Qf3
{[%clk 0:00:09.3]} 36... Rxe1+ {[%clk 0:00:10.1]} 37. Bxe1 {[%clk 0:00:09.1]}
37... Qd5 {[%clk 0:00:10]} 38. Qe2 {[%clk 0:00:06.9]} 38... Bb6 {[%clk
0:00:05.1]} 39. Re4 {[%clk 0:00:05.1]} 39... Qd3 {[%clk 0:00:04.6]} 40. Rxe6
{[%clk 0:00:04.5]} 40... Qxg3+ {[%clk 0:00:02.1]} 0-1

[Event "Early-Titled-Tuesday-Blitz-April-02-2024"]
[Site "Chess.com"]
[Date "2024.04.02"]
[Round "2"]
[White "Batica1984"]
[Black "Nf3c5"]
[Result "0-1"]
[WhiteElo "2769"]
[BlackElo "2587"]
[TimeControl "180+1"]
[EndTime "8:18:06 PDT"]
[Termination "Nf3c5 won on time"]

1. e4 {[%clk 0:03:00.9]} 1... c5 {[%clk 0:02:58.1]} 2. Nf3 {[%clk 0:02:59]} 2...
Nc6 {[%clk 0:02:58.5]} 3. Nc3 {[%clk 0:02:52.2]} 3... g6 {[%clk 0:02:48.8]} 4.
d4 {[%clk 0:02:51.1]} 4... cxd4 {[%clk 0:02:47.2]} 5. Nxd4 {[%clk 0:02:52]} 5...
Nf6 {[%clk 0:02:46.6]} 6. Nxc6 {[%clk 0:02:47.6]} 6... bxc6 {[%clk 0:02:40.1]}
7. e5 {[%clk 0:02:47.6]} 7... Ng8 {[%clk 0:02:39.7]} 8. Bc4 {[%clk 0:02:46]}
8... Bg7 {[%clk 0:02:38.6]} 9. Qf3 {[%clk 0:02:45.2]} 9... f6 {[%clk 0:02:35]}
10. Bf4 {[%clk 0:02:16.1]} 10... Qa5 {[%clk 0:01:59.5]} 11. O-O-O {[%clk
0:02:07.8]} 11... fxe5 {[%clk 0:01:50.6]} 12. Bd2 {[%clk 0:02:05.9]} 12... Nf6
{[%clk 0:01:47.3]} 13. Rhe1 {[%clk 0:02:00.5]} 13... Qc7 {[%clk 0:01:23.9]} 14.
Qg3 {[%clk 0:01:30.6]} 14... d5 {[%clk 0:01:08.4]} 15. Bb3 {[%clk 0:01:29.1]}
15... Nh5 {[%clk 0:01:01.9]} 16. Qh4 {[%clk 0:01:28.3]} 16... e6 {[%clk
0:00:57.2]} 17. Qb4 {[%clk 0:00:49]} 17... Qe7 {[%clk 0:00:50.6]} 18. Qa4 {[%clk
0:00:43.5]} 18... Bd7 {[%clk 0:00:49.8]} 19. g4 {[%clk 0:00:43.3]} 19... Nf4
{[%clk 0:00:41.3]} 20. Bxf4 {[%clk 0:00:42.7]} 20... exf4 {[%clk 0:00:41.9]} 21.
Qxf4 {[%clk 0:00:43.1]} 21... e5 {[%clk 0:00:39]} 22. Qf3 {[%clk 0:00:40.8]}
22... Qf6 {[%clk 0:00:33.2]} 23. Qg3 {[%clk 0:00:37.1]} 23... O-O {[%clk
0:00:33]} 24. Nxd5 {[%clk 0:00:17.1]} 24... cxd5 {[%clk 0:00:32.8]} 25. Bxd5+
{[%clk 0:00:16.9]} 25... Be6 {[%clk 0:00:33.4]} 26. Bxa8 {[%clk 0:00:16.9]}
26... Rxa8 {[%clk 0:00:34.3]} 27. Rd6 {[%clk 0:00:15.8]} 27... e4 {[%clk
0:00:27.5]} 28. c3 {[%clk 0:00:13.3]} 28... Bh6+ {[%clk 0:00:26.8]} 29. Kb1
{[%clk 0:00:12.1]} 29... Re8 {[%clk 0:00:21.5]} 30. h4 {[%clk 0:00:08.1]} 30...
Bf4 {[%clk 0:00:20.9]} 31. Rxe6 {[%clk 0:00:07.6]} 31... Rxe6 {[%clk 0:00:20.5]}
32. Qg2 {[%clk 0:00:07.6]} 32... Qe5 {[%clk 0:00:16.6]} 33. g5 {[%clk
0:00:05.5]} 33... Qd5 {[%clk 0:00:16.5]} 34. Qg4 {[%clk 0:00:05.4]} 34... Bd6
{[%clk 0:00:12.4]} 35. Rd1 {[%clk 0:00:05.4]} 35... Qe5 {[%clk 0:00:12.3]} 36.
Qe2 {[%clk 0:00:04.3]} 36... Kf7 {[%clk 0:00:10.8]} 37. a3 {[%clk 0:00:04]}
37... a5 {[%clk 0:00:09.9]} 38. Qc4 {[%clk 0:00:04.2]} 38... Be7 {[%clk
0:00:09.8]} 39. Rd5 {[%clk 0:00:04.1]} 39... Qf4 {[%clk 0:00:09.9]} 40. Rxa5
{[%clk 0:00:04.3]} 40... Qxf2 {[%clk 0:00:09.6]} 41. Ra6 {[%clk 0:00:04.7]}
41... Qf5 {[%clk 0:00:09.8]} 42. a4 {[%clk 0:00:04.7]} 42... e3+ {[%clk
0:00:10.2]} 43. Ka2 {[%clk 0:00:03.5]} 43... e2 {[%clk 0:00:09.7]} 44. Rxe6
{[%clk 0:00:01.9]} 44... Qxe6 {[%clk 0:00:09.8]} 0-1

[Event "Early-Titled-Tuesday-Blitz-April-02-2024"]
[Site "Chess.com"]
[Date "2024.04.02"]
[Round "2"]
[White "Hongjin"]
[Black "OriTaichman"]
[Result "0-1"]
[WhiteElo "2722"]
[BlackElo "2571"]
[TimeControl "180+1"]
[EndTime "8:18:06 PDT"]
[Termination "OriTaichman won by checkmate"]

1. e4 {[%clk 0:03:00.9]} 1... c5 {[%clk 0:02:43.9]} 2. Be2 {[%clk 0:02:57.7]}
2... Nc6 {[%clk 0:02:42.1]} 3. f4 {[%clk 0:02:45.8]} 3... g6 {[%clk 0:02:33.3]}
4. Nf3 {[%clk 0:02:45.8]} 4... Bg7 {[%clk 0:02:33.4]} 5. O-O {[%clk 0:02:46.4]}
5... d5 {[%clk 0:02:32.2]} 6. d3 {[%clk 0:02:46.7]} 6... Nf6 {[%clk 0:02:19.7]}
7. e5 {[%clk 0:02:46.3]} 7... Nd7 {[%clk 0:02:18.7]} 8. Qe1 {[%clk 0:02:45.7]}
8... f6 {[%clk 0:02:10.7]} 9. exf6 {[%clk 0:02:16.9]} 9... exf6 {[%clk
0:02:06.4]} 10. Nc3 {[%clk 0:02:14]} 10... Nb6 {[%clk 0:02:02]} 11. a4 {[%clk
0:02:13.5]} 11... d4 {[%clk 0:01:40.1]} 12. Ne4 {[%clk 0:02:10.3]} 12... Qe7
{[%clk 0:01:35.5]} 13. Nh4 {[%clk 0:02:04.9]} 13... f5 {[%clk 0:01:31.6]} 14.
Ng5 {[%clk 0:02:03.6]} 14... Nb4 {[%clk 0:01:12]} 15. Qd1 {[%clk 0:01:56.2]}
15... O-O {[%clk 0:01:09.1]} 16. Bf3 {[%clk 0:01:53]} 16... Qf6 {[%clk
0:01:04.8]} 17. g3 {[%clk 0:01:34.2]} 17... h6 {[%clk 0:01:04.4]} 18. Nh3 {[%clk
0:01:34]} 18... a5 {[%clk 0:00:58.7]} 19. Bd2 {[%clk 0:01:30.7]} 19... N6d5
{[%clk 0:00:53.1]} 20. Re1 {[%clk 0:01:29.2]} 20... Be6 {[%clk 0:00:51.6]} 21.
Ng2 {[%clk 0:01:10.6]} 21... Rae8 {[%clk 0:00:50.7]} 22. Nf2 {[%clk 0:01:09.3]}
22... Bf7 {[%clk 0:00:47.1]} 23. Rc1 {[%clk 0:00:56.9]} 23... Rxe1+ {[%clk
0:00:38.8]} 24. Bxe1 {[%clk 0:00:54.2]} 24... Ne3 {[%clk 0:00:33.1]} 25. Nxe3
{[%clk 0:00:49.7]} 25... dxe3 {[%clk 0:00:34]} 26. Nh3 {[%clk 0:00:46.1]} 26...
Qxb2 {[%clk 0:00:33.1]} 27. Bxb4 {[%clk 0:00:26.1]} 27... cxb4 {[%clk
0:00:28.1]} 28. Rb1 {[%clk 0:00:24.9]} 28... Qd4 {[%clk 0:00:25.6]} 29. Qe2
{[%clk 0:00:21.7]} 29... Be8 {[%clk 0:00:24.6]} 30. Bxb7 {[%clk 0:00:17.7]}
30... Bxa4 {[%clk 0:00:24.8]} 31. Kf1 {[%clk 0:00:15.6]} 31... Bb5 {[%clk
0:00:20.3]} 32. Ng1 {[%clk 0:00:13.4]} 32... Rb8 {[%clk 0:00:19.6]} 33. Bg2
{[%clk 0:00:12]} 33... Rc8 {[%clk 0:00:20]} 34. Nf3 {[%clk 0:00:12.2]} 34... Qc3
{[%clk 0:00:15.4]} 35. Qxe3 {[%clk 0:00:11.3]} 35... Qxc2 {[%clk 0:00:16]} 36.
Re1 {[%clk 0:00:11.6]} 36... Qxd3+ {[%clk 0:00:15.8]} 37. Qxd3 {[%clk
0:00:11.3]} 37... Bxd3+ {[%clk 0:00:16.7]} 38. Kg1 {[%clk 0:00:11.5]} 38... b3
{[%clk 0:00:17]} 39. Ne5 {[%clk 0:00:08.9]} 39... Bxe5 {[%clk 0:00:16.7]} 40.
Bd5+ {[%clk 0:00:09.2]} 40... Kg7 {[%clk 0:00:16.4]} 41. Bxb3 {[%clk 0:00:09.2]}
41... Bd4+ {[%clk 0:00:17]} 42. Kg2 {[%clk 0:00:09.9]} 42... Rb8 {[%clk
0:00:16.9]} 43. Re7+ {[%clk 0:00:07.6]} 43... Kh8 {[%clk 0:00:16.2]} 44. Bd5
{[%clk 0:00:06.6]} 44... Rb2+ {[%clk 0:00:13]} 45. Kf3 {[%clk 0:00:05.1]} 45...
Rf2# {[%clk 0:00:10.5]} 0-1

[Event "Early-Titled-Tuesday-Blitz-April-02-2024"]
[Site "Chess.com"]
[Date "2024.04.02"]
[Round "2"]
[White "IakovUlivar"]
[Black "FredddieCroderg"]
[Result "1-0"]
[WhiteElo "2581"]
[BlackElo "2351"]
[TimeControl "180+1"]
[EndTime "8:18:06 PDT"]
[Termination "IakovUlivar won by resignation"]

1. Nf3 {[%clk 0:03:00.9]} 1... d5 {[%clk 0:02:45.8]} 2. g3 {[%clk 0:03:01.3]}
2... e6 {[%clk 0:02:44.2]} 3. Bg2 {[%clk 0:03:01.6]} 3... Nf6 {[%clk 0:02:43.6]}
4. d4 {[%clk 0:03:02.1]} 4... Be7 {[%clk 0:02:42]} 5. c4 {[%clk 0:03:02.6]} 5...
dxc4 {[%clk 0:02:38.8]} 6. Qa4+ {[%clk 0:02:58.1]} 6... Nbd7 {[%clk 0:02:35.9]}
7. Qxc4 {[%clk 0:02:55]} 7... a6 {[%clk 0:02:35.6]} 8. Qc2 {[%clk 0:02:50.8]}
8... b5 {[%clk 0:02:31.6]} 9. Ne5 {[%clk 0:02:47.4]} 9... Nxe5 {[%clk
0:02:25.1]} 10. Bxa8 {[%clk 0:02:46.8]} 10... Qxd4 {[%clk 0:02:14.4]} 11. Be3
{[%clk 0:02:27.5]} 11... Qb4+ {[%clk 0:02:10.1]} 12. Qd2 {[%clk 0:02:00.2]}
12... Nc4 {[%clk 0:02:04.7]} 13. Bc6+ {[%clk 0:01:54.9]} 13... Kf8 {[%clk
0:02:03.8]} 14. Qxb4 {[%clk 0:01:50.7]} 14... Bxb4+ {[%clk 0:02:03.5]} 15. Bd2
{[%clk 0:01:49.7]} 15... Nxd2 {[%clk 0:02:03.1]} 16. Nxd2 {[%clk 0:01:50.1]}
16... Ke7 {[%clk 0:01:59]} 17. a3 {[%clk 0:01:47.5]} 17... Ba5 {[%clk
0:01:50.6]} 18. b4 {[%clk 0:01:42.2]} 18... Bb6 {[%clk 0:01:50.4]} 19. Nb3
{[%clk 0:01:39.2]} 19... e5 {[%clk 0:01:39.7]} 20. Rc1 {[%clk 0:01:22.2]} 20...
Bh3 {[%clk 0:01:31.9]} 21. Nc5 {[%clk 0:01:16.7]} 21... Ng4 {[%clk 0:01:12.6]}
22. e3 {[%clk 0:01:08.6]} 22... f5 {[%clk 0:00:57.5]} 23. Ke2 {[%clk 0:01:05.2]}
23... e4 {[%clk 0:00:52.1]} 24. f4 {[%clk 0:00:20.4]} 24... Rd8 {[%clk
0:00:39.2]} 25. Rhd1 {[%clk 0:00:19.5]} 25... Rd6 {[%clk 0:00:20.8]} 26. Rxd6
{[%clk 0:00:07.5]} 26... cxd6 {[%clk 0:00:20.9]} 27. Nxa6 {[%clk 0:00:08.3]}
27... Nxe3 {[%clk 0:00:20.5]} 28. Bxb5 {[%clk 0:00:08]} 28... Bg4+ {[%clk
0:00:19.6]} 29. Kd2 {[%clk 0:00:08.6]} 29... Ng2 {[%clk 0:00:17.5]} 30. Rc6
{[%clk 0:00:04.8]} 30... Be3+ {[%clk 0:00:15.5]} 31. Kc3 {[%clk 0:00:04.5]}
31... d5 {[%clk 0:00:14.2]} 32. Rc7+ {[%clk 0:00:04.8]} 32... Kd8 {[%clk
0:00:12.7]} 33. Rd7+ {[%clk 0:00:05]} 33... Kc8 {[%clk 0:00:12.9]} 34. Rc7+
{[%clk 0:00:05.6]} 34... Kd8 {[%clk 0:00:12.9]} 35. Rd7+ {[%clk 0:00:06.5]}
35... Kc8 {[%clk 0:00:12.9]} 36. Rxd5 {[%clk 0:00:07.4]} 36... Bf2 {[%clk
0:00:07.4]} 37. Bd7+ {[%clk 0:00:06.7]} 37... Kb7 {[%clk 0:00:06.5]} 38. Nc5+
{[%clk 0:00:06.5]} 38... Kc7 {[%clk 0:00:06.8]} 39. Bxf5 {[%clk 0:00:05.4]}
39... Ne3 {[%clk 0:00:03.9]} 40. Rd7+ {[%clk 0:00:05.2]} 40... Kc6 {[%clk
0:00:04.1]} 41. Bxg4 {[%clk 0:00:04.9]} 41... Nxg4 {[%clk 0:00:03.7]} 42. Rxg7
{[%clk 0:00:04.9]} 42... e3 {[%clk 0:00:04.5]} 43. Rxg4 {[%clk 0:00:04.4]} 43...
e2 {[%clk 0:00:05.2]} 44. Nd3 {[%clk 0:00:04.7]} 44... Bd4+ {[%clk 0:00:04.4]}
45. Kxd4 {[%clk 0:00:04.8]} 1-0

[Event "Early-Titled-Tuesday-Blitz-April-02-2024"]
[Site "Chess.com"]
[Date "2024.04.02"]
[Round "2"]
[White "Shahdad2007"]
[Black "TigrVShlyape"]
[Result "0-1"]
[WhiteElo "2612"]
[BlackElo "2912"]
[TimeControl "180+1"]
[EndTime "8:18:07 PDT"]
[Termination "TigrVShlyape won on time"]

1. Nf3 {[%clk 0:03:00.9]} 1... Nf6 {[%clk 0:02:59.3]} 2. c4 {[%clk 0:03:00.5]}
2... e6 {[%clk 0:02:56.6]} 3. g3 {[%clk 0:02:59.9]} 3... b6 {[%clk 0:02:54.1]}
4. Bg2 {[%clk 0:02:59.9]} 4... Bb7 {[%clk 0:02:54.7]} 5. O-O {[%clk 0:03:00.3]}
5... Be7 {[%clk 0:02:53.6]} 6. b3 {[%clk 0:02:58.7]} 6... O-O {[%clk 0:02:53.1]}
7. Bb2 {[%clk 0:02:59]} 7... c6 {[%clk 0:02:47.2]} 8. d4 {[%clk 0:02:55.7]} 8...
d5 {[%clk 0:02:47.3]} 9. Nc3 {[%clk 0:02:55.9]} 9... Nbd7 {[%clk 0:02:47.4]} 10.
Re1 {[%clk 0:02:50.3]} 10... Ne4 {[%clk 0:02:39.9]} 11. Nxe4 {[%clk 0:02:27.7]}
11... dxe4 {[%clk 0:02:39.6]} 12. Nd2 {[%clk 0:02:28.3]} 12... f5 {[%clk
0:02:38.9]} 13. Qc2 {[%clk 0:02:15.5]} 13... c5 {[%clk 0:02:35.9]} 14. f3 {[%clk
0:02:00]} 14... Bf6 {[%clk 0:02:11.2]} 15. e3 {[%clk 0:01:51.9]} 15... exf3
{[%clk 0:02:09.4]} 16. Bxf3 {[%clk 0:01:47.7]} 16... Qc7 {[%clk 0:02:07.8]} 17.
Bxb7 {[%clk 0:01:26.2]} 17... Qxb7 {[%clk 0:02:07.4]} 18. Rad1 {[%clk
0:01:22.9]} 18... Rad8 {[%clk 0:02:06.5]} 19. Nf1 {[%clk 0:01:19.1]} 19... g6
{[%clk 0:01:50.3]} 20. Qg2 {[%clk 0:01:19.3]} 20... Qxg2+ {[%clk 0:01:47]} 21.
Kxg2 {[%clk 0:01:20.2]} 21... e5 {[%clk 0:01:40.5]} 22. dxc5 {[%clk 0:01:12.2]}
22... Nxc5 {[%clk 0:01:39.3]} 23. Ba3 {[%clk 0:01:11.3]} 23... e4 {[%clk
0:01:37.6]} 24. Bxc5 {[%clk 0:01:07.7]} 24... bxc5 {[%clk 0:01:36.7]} 25. Rd5
{[%clk 0:01:08.2]} 25... Rxd5 {[%clk 0:01:35.3]} 26. cxd5 {[%clk 0:01:09.1]}
26... Rd8 {[%clk 0:01:35.3]} 27. Rd1 {[%clk 0:01:09.3]} 27... h5 {[%clk
0:01:34.3]} 28. d6 {[%clk 0:00:50.7]} 28... Kf7 {[%clk 0:01:30.8]} 29. Rd5
{[%clk 0:00:50.7]} 29... Ke6 {[%clk 0:01:30.1]} 30. Rxc5 {[%clk 0:00:50.6]}
30... Rxd6 {[%clk 0:01:30.7]} 31. Rc2 {[%clk 0:00:50.4]} 31... Rd3 {[%clk
0:01:24.4]} 32. Kf2 {[%clk 0:00:50.4]} 32... Bc3 {[%clk 0:01:22.2]} 33. Ke2
{[%clk 0:00:47.4]} 33... g5 {[%clk 0:01:01.1]} 34. h4 {[%clk 0:00:29.2]} 34...
Kf6 {[%clk 0:00:38.5]} 35. Nd2 {[%clk 0:00:24.2]} 35... gxh4 {[%clk 0:00:37.7]}
36. gxh4 {[%clk 0:00:23.9]} 36... Ke6 {[%clk 0:00:36.3]} 37. Nf1 {[%clk
0:00:18.6]} 37... Ba5 {[%clk 0:00:30]} 38. Ng3 {[%clk 0:00:17.8]} 38... Bb6
{[%clk 0:00:29.9]} 39. Rc6+ {[%clk 0:00:15.1]} 39... Ke5 {[%clk 0:00:29.9]} 40.
Nxh5 {[%clk 0:00:12.2]} 40... Rxe3+ {[%clk 0:00:29.4]} 41. Kd2 {[%clk
0:00:12.9]} 41... Rh3 {[%clk 0:00:28.2]} 42. a4 {[%clk 0:00:12]} 42... f4 {[%clk
0:00:26]} 43. b4 {[%clk 0:00:09.2]} 43... Rh2+ {[%clk 0:00:25.4]} 44. Ke1 {[%clk
0:00:09.2]} 44... f3 {[%clk 0:00:24.7]} 45. a5 {[%clk 0:00:09]} 45... Bf2+
{[%clk 0:00:24.7]} 46. Kf1 {[%clk 0:00:09.1]} 46... e3 {[%clk 0:00:24.8]} 47.
Rc5+ {[%clk 0:00:06.7]} 47... Ke4 {[%clk 0:00:22.7]} 48. Nf6+ {[%clk 0:00:05.8]}
48... Kd4 {[%clk 0:00:21.5]} 0-1

[Event "Early-Titled-Tuesday-Blitz-April-02-2024"]
[Site "Chess.com"]
[Date "2024.04.02"]
[Round "2"]
[White "viktorskliarov"]
[Black "MatthewG-p4p"]
[Result "1-0"]
[WhiteElo "2623"]
[BlackElo "2883"]
[TimeControl "180+1"]
[EndTime "8:18:09 PDT"]
[Termination "viktorskliarov won by resignation"]

1. e4 {[%clk 0:03:00.9]} 1... e6 {[%clk 0:02:55.5]} 2. d4 {[%clk 0:03:00.9]}
2... d5 {[%clk 0:02:56.1]} 3. e5 {[%clk 0:03:01.3]} 3... c5 {[%clk 0:02:56.3]}
4. c3 {[%clk 0:03:02]} 4... Qb6 {[%clk 0:02:56.8]} 5. Nf3 {[%clk 0:03:02.4]}
5... Nc6 {[%clk 0:02:56.7]} 6. a3 {[%clk 0:03:02.6]} 6... Nh6 {[%clk 0:02:56.4]}
7. b4 {[%clk 0:03:02.6]} 7... cxd4 {[%clk 0:02:56.3]} 8. Bxh6 {[%clk 0:03:03.3]}
8... gxh6 {[%clk 0:02:56.1]} 9. cxd4 {[%clk 0:03:04]} 9... Bd7 {[%clk
0:02:51.8]} 10. Be2 {[%clk 0:03:03.5]} 10... Rg8 {[%clk 0:02:51.8]} 11. O-O
{[%clk 0:03:03.4]} 11... Rg4 {[%clk 0:02:51.2]} 12. h3 {[%clk 0:03:03.8]} 12...
Rxd4 {[%clk 0:02:50.9]} 13. Nxd4 {[%clk 0:03:02]} 13... Qxd4 {[%clk 0:02:45.5]}
14. Qxd4 {[%clk 0:03:01.8]} 14... Nxd4 {[%clk 0:02:46.4]} 15. Bh5 {[%clk
0:03:02.4]} 15... Rc8 {[%clk 0:02:27.5]} 16. Nd2 {[%clk 0:02:57.6]} 16... Rc2
{[%clk 0:02:26.6]} 17. Rfd1 {[%clk 0:02:34.5]} 17... Ba4 {[%clk 0:02:25.7]} 18.
Rac1 {[%clk 0:01:53.7]} 18... Bg7 {[%clk 0:01:59.9]} 19. Rxc2 {[%clk 0:01:22.5]}
19... Bxc2 {[%clk 0:01:58.8]} 20. Re1 {[%clk 0:01:17.8]} 20... Ba4 {[%clk
0:01:52.1]} 21. f4 {[%clk 0:01:09.5]} 21... Ke7 {[%clk 0:01:42.1]} 22. Rc1
{[%clk 0:01:06.1]} 22... Bc6 {[%clk 0:01:39.9]} 23. Kf2 {[%clk 0:00:58.1]} 23...
f6 {[%clk 0:01:37.6]} 24. exf6+ {[%clk 0:00:50.4]} 24... Bxf6 {[%clk 0:01:38.5]}
25. Nf3 {[%clk 0:00:49.5]} 25... Nb3 {[%clk 0:01:31]} 26. Re1 {[%clk 0:00:46.1]}
26... d4 {[%clk 0:01:17.9]} 27. Ne5 {[%clk 0:00:32.4]} 27... Nd2 {[%clk
0:00:39.8]} 28. Nxc6+ {[%clk 0:00:27.8]} 28... bxc6 {[%clk 0:00:40.7]} 29. Bg4
{[%clk 0:00:28.1]} 29... e5 {[%clk 0:00:33.4]} 30. fxe5 {[%clk 0:00:27.2]} 30...
Bg5 {[%clk 0:00:34]} 31. Ke2 {[%clk 0:00:22.4]} 31... Nc4 {[%clk 0:00:32.6]} 32.
Kd3 {[%clk 0:00:21.7]} 32... Nxa3 {[%clk 0:00:33.1]} 33. Ra1 {[%clk 0:00:21.5]}
33... Nb5 {[%clk 0:00:31.4]} 34. Bf3 {[%clk 0:00:21.2]} 34... Ke6 {[%clk
0:00:06.7]} 35. Bxc6 {[%clk 0:00:20.5]} 35... Nc3 {[%clk 0:00:07.5]} 36. Kxd4
{[%clk 0:00:19.7]} 36... Ne2+ {[%clk 0:00:08.2]} 37. Kc4 {[%clk 0:00:17.9]}
37... Nf4 {[%clk 0:00:05.2]} 38. Rxa7 {[%clk 0:00:16.8]} 38... Kxe5 {[%clk
0:00:06]} 39. b5 {[%clk 0:00:16.6]} 39... Kd6 {[%clk 0:00:06.4]} 40. Rd7+ {[%clk
0:00:16.1]} 40... Ke6 {[%clk 0:00:06.7]} 41. b6 {[%clk 0:00:16.4]} 41... Ng6
{[%clk 0:00:07.4]} 42. Rxh7 {[%clk 0:00:10.6]} 42... Kd6 {[%clk 0:00:05]} 43.
Kb5 {[%clk 0:00:10.7]} 43... Ne5 {[%clk 0:00:05.1]} 44. Be4 {[%clk 0:00:10.8]}
44... Nd7 {[%clk 0:00:04.3]} 45. Bf5 {[%clk 0:00:11]} 45... Bf4 {[%clk
0:00:05.2]} 46. Rxd7+ {[%clk 0:00:10.4]} 1-0